[Event "1st Gujarat GM Open 2018"]
[Site "Ahmedabad"]
[Date "2018.10.07"]
[Round "3"]
[White "Nandhidhaa, P V"]
[Black "Rahul Srivatshav P"]
[Result "1/2-1/2"]
[ECO "A04"]
[WhiteElo "2212"]
[BlackElo "2395"]
[Annotator "NA"]
[PlyCount "83"]
[EventDate "2018.10.05"]
[EventType "swiss"]
[EventCountry "IND"]
[SourceTitle "playchess.com"]
[Source "ChessBase"]
[SourceQuality "1"]
[TimeControl "5400+30"]

1. Nf3 {[%emt 0:01:00]} g6 {[%emt 0:00:09]} 2. g3 {[%emt 0:00:09]} Bg7 {[%emt 0:00:09]} 3. Bg2 {[%emt 0:00:36]} c5 {[%emt 0:01:46]} 4. O-O {[%emt 0:04:42]} Nc6 {[%emt 0:00:30]} 5. c4 {[%emt 0:00:38]} d6 {[%emt 0:00:26]} 6. Nc3 {[%emt 0:00:38]} e6 {[%emt 0:00:14]} 7. b3 {[%emt 0:03:13]} Nge7 {[%emt 0:00:42]} 8. Bb2 {[%emt 0:00:12]} O-O {[%emt 0:00:27]} 9. e3 {[%emt 0:03:07]} e5 {[%emt 0:10:20]} 10. d3 {[%emt 0:04:35]} h6 {[%emt 0:03:34]} 11. Qe2 {[%emt 0:08:58]} Bg4 {[%emt 0:13:42]} 12. h3 {[%emt 0:00:43]} Be6 {[%emt 0:00:08]} 13. Rac1 {[%emt 0:00:54]} Qd7 {[%emt 0:01:27]} 14. Kh2 {[%emt 0:00:10]} Kh7 {[%emt 0:07:50]} 15. Rfd1 {[%emt 0:06:18]} Rae8 {[%emt 0:09:19]} 16. d4 {[%emt 0:06:39]} exd4 {[%emt 0:03:01]} 17. exd4 {[%emt 0:01:36]} Nxd4 {[%emt 0:12:25]} 18. Nxd4 {[%emt 0:01:09]} cxd4 {[%emt 0:01:00]} 19. Nb5 {[%emt 0:05:11]} Nc6 {[%emt 0:00:07]} 20. Qf1 {[%emt 0:16:14]} f5 {[%emt 0:08:24]} 21. f4 {[%emt 0:02:24]} h5 {[%emt 0:05:38]} 22. h4 {[%emt 0:01:16]} Ne5 {[%emt 0:03:39]} 23. fxe5 {[%emt 0:15:05]} dxe5 {[%emt 0:00:06]} 24. Ba3 {[%emt 0:00:03]} Rf6 {[%emt 0:01:51]} 25. Nd6 {[%emt 0:01:19]} Rg8 {[%emt 0:06:59]} 26. Qe2 {[%emt 0:02:32]} f4 {[%emt 0:00:10]} 27. Qxe5 {[%emt 0:06:07]} Rf5 {[%emt 0:02:22]} 28. Qe4 {[%emt 0:01:48]} fxg3+ {[%emt 0:00:09]} 29. Kg1 {[%emt 0:01:36]} Rf2 {[%emt 0:03:23]} 30. Rc2 {[%emt 0:02:25]} Rgf8 {[%emt 0:02:19]} 31. Rxf2 {[%emt 0:02:32]} gxf2+ {[%emt 0:00:34]} 32. Kf1 {[%emt 0:00:20]} Bg4 {[%emt 0:01:20]} 33. Rd2 {[%emt 0:00:29]} Rf6 {[%emt 0:01:47]} 34. Qd5 {[%emt 0:01:12]} Qe7 {[%emt 0:00:30]} 35. Ne4 {[%emt 0:01:01]} Qxa3 {[%emt 0:00:02]} 36. Nxf6+ {[%emt 0:00:25]} Bxf6 {[%emt 0:00:01]} 37. Qf7+ {[%emt 0:00:17]} Kh6 {[%emt 0:00:18]} 38. Rc2 {[%emt 0:00:50]} Bxh4 {[%emt 0:01:13]} 39. Qf4+ {[%emt 0:00:12]} Kh7 {[%emt 0:00:28]} 40. Qf7+ {[%emt 0:00:24]} Kh6 {[%emt 0:00:04]} 41. Qf4+ {[%emt 0:00:03]} Kh7 {[%emt 0:00:04]} 42. Qf7+ {[%emt 0:00:59]} 1/2-1/2

[Event "1st Gujarat GM Open 2018"]
[Site "Ahmedabad"]
[Date "2018.10.07"]
[Round "3"]
[White "Srihari L R"]
[Black "Arjun Kalyan"]
[Result "1-0"]
[ECO "A12"]
[WhiteElo "2170"]
[BlackElo "2408"]
[Annotator "ChessBase"]
[PlyCount "155"]
[EventDate "2018.10.05"]
[EventType "swiss"]
[EventCountry "IND"]
[SourceTitle "playchess.com"]
[Source "ChessBase"]
[SourceQuality "1"]
[TimeControl "5400+30"]

1. Nf3 {[%emt 0:00:00]} d5 {[%emt 0:00:00]} 2. c4 {[%emt 0:00:00]} c6 {[%emt 0:00:22]} 3. b3 {[%emt 0:02:01]} Bg4 {[%emt 0:01:41]} 4. Bb2 {[%emt 0:00:41]} Bxf3 {[%emt 0:01:51]} 5. exf3 {[%emt 0:00:27]} Nf6 {[%emt 0:00:44]} 6. d4 {[%emt 0:01:31]} g6 {[%emt 0:01:43]} 7. Nd2 {[%emt 0:05:55]} Bg7 {[%emt 0:00:31]} 8. g3 {[%emt 0:01:29]} O-O {[%emt 0:00:29]} 9. Bg2 {[%emt 0:01:26]} a5 10. O-O {[%emt 0:07:22]} Na6 {[%emt 0:13:41]} 11. f4 {[%emt 0:01:28]} b5 {[%emt 0:13:11]} 12. Qe2 {[%emt 0:10:29]} Qb6 {[%emt 0:03:36]} 13. c5 {[%emt 0:08:43]} Qb7 {[%emt 0:00:18]} 14. a4 {[%emt 0:00:25]} Nc7 {[%emt 0:09:29]} 15. axb5 {[%emt 0:18:27]} Nxb5 16. Ra4 {[%emt 0:01:26]} Nd7 {[%emt 0:17:42]} 17. Rc1 {[%emt 0:00:32]} e6 {[%emt 0:01:51]} 18. Nf3 {[%emt 0:02:17]} Nc7 {[%emt 0:04:34]} 19. Qc2 {[%emt 0:00:47]} Rfb8 {[%emt 0:01:29]} 20. Nd2 {[%emt 0:00:38]} Ra7 {[%emt 0:08:50]} 21. Rca1 {[%emt 0:00:57]} Rba8 {[%emt 0:00:01]} 22. Bf1 {[%emt 0:02:52]} Na6 {[%emt 0:03:42]} 23. Bxa6 {[%emt 0:02:15]} Rxa6 {[%emt 0:00:37]} 24. Bc3 {[%emt 0:00:32]} Qb5 {[%emt 0:00:24]} 25. Nf3 {[%emt 0:02:37]} f6 {[%emt 0:04:55]} 26. Kg2 {[%emt 0:01:18]} e5 {[%emt 0:02:02]} 27. b4 {[%emt 0:00:55]} e4 {[%emt 0:03:38]} 28. Ne1 {[%emt 0:00:09]} axb4 {[%emt 0:00:12]} 29. Rxb4 {[%emt 0:00:06]} Qxb4 {[%emt 0:00:03]} 30. Rxa6 {[%emt 0:00:10]} Qb7 {[%emt 0:00:08]} 31. Rxa8+ {[%emt 0:00:08]} Qxa8 {[%emt 0:00:01]} 32. Qb3 {[%emt 0:01:02]} Qb7 33. Qc2 {[%emt 0:00:30]} Qa8 {[%emt 0:01:00]} 34. Qb3 {[%emt 0:00:30]} f5 {[%emt 0:00:58]} 35. Nc2 {[%emt 0:00:15]} Qa6 {[%emt 0:00:58]} 36. Nb4 {[%emt 0:00:23]} Qb5 {[%emt 0:01:31]} 37. Qa3 {[%emt 0:00:13]} Qb7 {[%emt 0:01:12]} 38. Qa4 {[%emt 0:01:30]} Nb8 {[%emt 0:00:04]} 39. Qa5 {[%emt 0:00:58]} Bf6 {[%emt 0:00:04]} 40. h4 {[%emt 0:00:52]} Kf7 {[%emt 0:00:18]} 41. Kf1 {[%emt 0:03:28]} Ke8 {[%emt 0:00:37]} 42. Qa4 {[%emt 0:00:26]} Kd8 {[%emt 0:00:23]} 43. Ke2 {[%emt 0:02:31]} Kc8 {[%emt 0:00:05]} 44. Ke3 {[%emt 0:01:06]} Bd8 {[%emt 0:00:10]} 45. Ke2 {[%emt 0:01:05]} h6 {[%emt 0:01:13]} 46. Bd2 {[%emt 0:00:45]} Bf6 {[%emt 0:01:11]} 47. Be3 {[%emt 0:00:11]} Qc7 {[%emt 0:00:43]} 48. Kf1 {[%emt 0:04:02]} Bd8 {[%emt 0:00:19]} 49. Qa8 {[%emt 0:01:00]} Qb7 {[%emt 0:00:43]} 50. Qa4 {[%emt 0:00:07]} Bc7 {[%emt 0:01:37]} 51. Kg2 {[%emt 0:01:41]} Kd8 {[%emt 0:00:17]} 52. Kf1 {[%emt 0:01:22]} Ke7 {[%emt 0:00:03]} 53. Kg2 {[%emt 0:00:45]} Bd8 {[%emt 0:00:16]} 54. Kh2 {[%emt 0:01:26]} Kf7 {[%emt 0:00:26]} 55. Kg2 {[%emt 0:00:30]} Kf8 {[%emt 0:02:00]} 56. Kf1 {[%emt 0:00:28]} Kf7 {[%emt 0:00:07]} 57. Kg2 {[%emt 0:00:16]} Bf6 {[%emt 0:01:29]} 58. Kh2 {[%emt 0:01:23]} Be7 {[%emt 0:00:04]} 59. Kg2 {[%emt 0:00:27]} Bd8 {[%emt 0:00:02]} 60. Kh2 {[%emt 0:01:16]} Kf6 {[%emt 0:00:39]} 61. Kg2 {[%emt 0:00:08]} Ke6 {[%emt 0:00:34]} 62. Nxd5 {[%emt 0:00:28]} cxd5 {[%emt 0:00:31]} 63. Qe8+ {[%emt 0:00:29]} Be7 {[%emt 0:01:37]} 64. Qxg6+ {[%emt 0:00:02]} Kd7 {[%emt 0:00:03]} 65. Qxf5+ {[%emt 0:00:07]} Kd8 {[%emt 0:00:20]} 66. Qh7 {[%emt 0:01:04]} Qc6 {[%emt 0:00:32]} 67. f5 {[%emt 0:00:29]} Qe8 {[%emt 0:01:40]} 68. Qxh6 {[%emt 0:01:07]} Nc6 {[%emt 0:00:21]} 69. f6 {[%emt 0:01:13]} Bf8 {[%emt 0:00:46]} 70. Qh7 {[%emt 0:00:47]} Qd7 {[%emt 0:00:55]} 71. f7 {[%emt 0:01:05]} Kc8 {[%emt 0:01:12]} 72. Qg8 {[%emt 0:00:21]} Qd8 {[%emt 0:00:05]} 73. Bg5 {[%emt 0:00:05]} Ne7 {[%emt 0:00:04]} 74. h5 {[%emt 0:00:08]} Kd7 {[%emt 0:00:45]} 75. h6 {[%emt 0:00:23]} Qb8 {[%emt 0:00:53]} 76. h7 {[%emt 0:00:44]} Qb3 {[%emt 0:00:03]} 77. Be3 {[%emt 0:00:17]} Qd1 {[%emt 0:00:40]} 78. h8=Q {[%emt 0:00:29] Ke8 [%clk 0:00:15]} 1-0

[Event "1st Gujarat GM Open 2018"]
[Site "Ahmedabad"]
[Date "2018.10.07"]
[Round "3"]
[White "Utsab Chatterjee"]
[Black "Saurabh Anand"]
[Result "0-1"]
[ECO "B44"]
[WhiteElo "2149"]
[BlackElo "2303"]
[Annotator "NA"]
[PlyCount "74"]
[EventDate "2018.10.05"]
[EventType "swiss"]
[EventCountry "IND"]
[SourceTitle "playchess.com"]
[Source "ChessBase"]
[SourceQuality "1"]
[TimeControl "5400+30"]

1. e4 c5 2. Nf3 e6 3. d4 cxd4 4. Nxd4 Nc6 5. Nxc6 bxc6 6. Bd3 Nf6 7. O-O d5 8. Nc3 Be7 9. Qe2 O-O 10. f4 c5 11. Bb5 Bb7 12. e5 Ne8 13. b3 f5 14. Bd2 Nc7 15. Bd3 Qd7 16. Rad1 Rac8 17. Be1 Qc6 18. Kh1 a6 19. Qf2 d4 20. Nb1 Bh4 21. Qe2 Bxe1 22. Rdxe1 Nd5 23. Rf2 Rc7 24. a3 h6 25. Bc4 Ne3 26. c3 g5 27. fxg5 hxg5 28. cxd4 cxd4 29. Nd2 g4 30. Kg1 Rg7 31. Nf1 f4 32. Nxe3 dxe3 33. Rff1 Qe8 34. Rd1 f3 35. Qxe3 g3 36. h3 f2+ 37. Kh1 Qc6 0-1

[Event "1st Gujarat GM Open 2018"]
[Site "Ahmedabad"]
[Date "2018.10.07"]
[Round "3"]
[White "Jay Kundaliya"]
[Black "Rakesh Kumar Jena"]
[Result "1-0"]
[ECO "B00"]
[WhiteElo "2047"]
[BlackElo "2388"]
[Annotator "NA"]
[PlyCount "115"]
[EventDate "2018.10.05"]
[EventType "swiss"]
[EventCountry "IND"]
[SourceTitle "playchess.com"]
[Source "ChessBase"]
[SourceQuality "1"]
[TimeControl "5400+30"]

1. e4 {[%emt 0:00:41]} d6 {[%emt 0:00:00]} 2. d4 {[%emt 0:01:00]} Nf6 {[%emt 0:00:00]} 3. f3 {[%emt 0:00:56]} g6 {[%emt 0:00:05]} 4. Be3 {[%emt 0:00:23]} Bg7 {[%emt 0:03:12]} 5. Qd2 {[%emt 0:07:27]} Nbd7 {[%emt 0:01:53]} 6. Bh6 {[%emt 0:08:41]} Bxh6 {[%emt 0:00:27]} 7. Qxh6 {[%emt 0:00:02]} c5 {[%emt 0:00:01]} 8. c3 {[%emt 0:01:29]} Qb6 {[%emt 0:02:17]} 9. Qd2 {[%emt 0:00:48]} O-O {[%emt 0:04:12]} 10. Na3 {[%emt 0:05:23]} Qc7 {[%emt 0:13:05]} 11. Ne2 {[%emt 0:07:58]} a6 {[%emt 0:03:40]} 12. g4 {[%emt 0:04:16]} b5 {[%emt 0:01:13]} 13. Ng3 {[%emt 0:01:43]} b4 {[%emt 0:02:21]} 14. cxb4 {[%emt 0:02:29]} cxd4 {[%emt 0:00:51]} 15. Qxd4 {[%emt 0:00:59]} Ne5 {[%emt 0:00:04]} 16. Be2 {[%emt 0:03:58]} Rb8 {[%emt 0:00:49]} 17. Qd2 {[%emt 0:06:52]} Rd8 {[%emt 0:00:15]} 18. g5 {[%emt 0:08:05]} Ne8 {[%emt 0:03:52]} 19. f4 {[%emt 0:02:46]} Nc6 {[%emt 0:01:22]} 20. Nc2 {[%emt 0:01:16]} d5 {[%emt 0:06:20]} 21. e5 {[%emt 0:03:05]} d4 {[%emt 0:03:18]} 22. Bd3 {[%emt 0:02:33]} Qb6 {[%emt 0:13:07]} 23. a3 {[%emt 0:00:26]} Bh3 {[%emt 0:00:04]} 24. Ne4 {[%emt 0:04:29]} Nc7 {[%emt 0:01:02]} 25. Qf2 {[%emt 0:03:26]} a5 {[%emt 0:07:50]} 26. Qf3 {[%emt 0:10:47]} Bf5 {[%emt 0:01:15]} 27. bxa5 {[%emt 0:03:26]} Qxb2 {[%emt 0:01:30]} 28. O-O {[%emt 0:00:32]} Nd5 {[%emt 0:05:09]} 29. Nb4 {[%emt 0:03:52]} Ncxb4 {[%emt 0:09:51]} 30. axb4 {[%emt 0:00:03]} Nc3 {[%emt 0:00:35]} 31. Nxc3 {[%emt 0:01:36]} Bxd3 {[%emt 0:01:39]} 32. Na4 {[%emt 0:02:28]} Qe2 {[%emt 0:00:04]} 33. Nc5 {[%emt 0:00:40]} Qxf3 {[%emt 0:00:14]} 34. Rxf3 {[%emt 0:00:02]} Be2 {[%emt 0:00:27]} 35. Rb3 {[%emt 0:00:02]} Bc4 {[%emt 0:03:20]} 36. Rb2 {[%emt 0:00:10]} Bb5 {[%emt 0:03:57]} 37. Kf2 {[%emt 0:00:56]} Bc6 {[%emt 0:01:26]} 38. a6 {[%emt 0:00:34]} Rb5 {[%emt 0:05:21]} 39. a7 {[%emt 0:00:26]} Kg7 {[%emt 0:00:49]} 40. Ke2 {[%emt 0:00:45]} e6 {[%emt 0:02:27]} 41. Kd3 {[%emt 0:00:35]} Rb6 {[%emt 0:00:16]} 42. Ra5 {[%emt 0:00:24]} Rc8 {[%emt 0:00:48]} 43. Kxd4 {[%emt 0:00:43]} Ba8 {[%emt 0:00:19]} 44. b5 {[%emt 0:01:24]} Rc7 {[%emt 0:00:19]} 45. Ra6 {[%emt 0:01:17]} Rxa6 {[%emt 0:00:05]} 46. bxa6 {[%emt 0:00:03]} Rxa7 {[%emt 0:00:04]} 47. Rb7 {[%emt 0:00:48]} Rxa6 {[%emt 0:00:01]} 48. Rxf7+ {[%emt 0:00:01]} Kxf7 {[%emt 0:00:01]} 49. Nxa6 {[%emt 0:00:01]} Ke7 {[%emt 0:00:31]} 50. Kc5 {[%emt 0:00:19]} Kd7 {[%emt 0:01:20]} 51. Nb4 {[%emt 0:00:13]} Be4 {[%emt 0:00:15]} 52. Na2 {[%emt 0:00:04]} Kc7 {[%emt 0:00:32]} 53. Nc3 {[%emt 0:00:03]} Bf3 {[%emt 0:00:03]} 54. Nb5+ {[%emt 0:01:06]} Kd7 {[%emt 0:00:02]} 55. Kb6 {[%emt 0:00:19]} Bg2 {[%emt 0:00:40]} 56. Nd6 {[%emt 0:00:10]} Bf3 {[%emt 0:01:55]} 57. Nf7 {[%emt 0:00:06]} Ke7 {[%emt 0:00:50]} 58. Nh6 {[%emt 0:00:53]} 1-0

[Event "1st Gujarat GM Open 2018"]
[Site "Ahmedabad"]
[Date "2018.10.07"]
[Round "3"]
[White "Tarun Kanyamarala"]
[Black "Siva Mahadevan"]
[Result "0-1"]
[ECO "D70"]
[WhiteElo "2046"]
[BlackElo "2341"]
[Annotator "NA"]
[PlyCount "64"]
[EventDate "2018.10.05"]
[EventType "swiss"]
[EventCountry "IND"]
[SourceTitle "playchess.com"]
[Source "ChessBase"]
[SourceQuality "1"]
[TimeControl "5400+30"]

1. d4 {[%emt 0:00:00]} Nf6 {[%emt 0:00:04]} 2. c4 {[%emt 0:00:22]} g6 {[%emt 0:00:57]} 3. f3 {[%emt 0:00:40]} d5 {[%emt 0:01:06]} 4. cxd5 {[%emt 0:00:18]} Nxd5 {[%emt 0:00:07]} 5. e4 {[%emt 0:00:31]} Nb6 {[%emt 0:00:07]} 6. Nc3 {[%emt 0:00:52]} Bg7 {[%emt 0:00:10]} 7. Be3 {[%emt 0:00:11]} O-O {[%emt 0:00:11]} 8. Qd2 {[%emt 0:01:57]} e5 {[%emt 0:00:12]} 9. d5 {[%emt 0:06:11]} c6 {[%emt 0:00:40]} 10. O-O-O {[%emt 0:05:59]} cxd5 {[%emt 0:00:34]} 11. exd5 {[%emt 0:00:15]} Na6 {[%emt 0:00:06]} 12. g4 {[%emt 0:06:33]} Bd7 {[%emt 0:01:01]} 13. h4 {[%emt 0:10:41]} Rc8 {[%emt 0:01:06]} 14. Kb1 {[%emt 0:00:57]} e4 {[%emt 0:21:00]} 15. Nxe4 {[%emt 0:05:33]} Ba4 {[%emt 0:00:14]} 16. b3 {[%emt 0:09:21]} f5 {[%emt 0:01:52]} 17. gxf5 {[%emt 0:03:48]} Rxf5 {[%emt 0:06:13]} 18. Bh3 {[%emt 0:11:10]} Nc4 {[%emt 0:05:02]} 19. bxc4 {[%emt 0:01:40]} Rxc4 {[%emt 0:00:25]} 20. Bxf5 {[%emt 0:01:07]} gxf5 {[%emt 0:00:19]} 21. Ne2 {[%emt 0:07:12]} Bxd1 {[%emt 0:22:41]} 22. Rxd1 {[%emt 0:05:02]} Rb4+ {[%emt 0:01:21]} 23. Qxb4 {[%emt 0:02:17]} Nxb4 {[%emt 0:00:07]} 24. N4c3 {[%emt 0:02:41]} Qa5 {[%emt 0:06:31]} 25. d6 {[%emt 0:03:34]} Nxa2 {[%emt 0:00:40]} 26. Nxa2 {[%emt 0:03:43]} Qb5+ {[%emt 0:00:10]} 27. Kc2 {[%emt 0:00:14]} Qxe2+ {[%emt 0:00:04]} 28. Bd2 {[%emt 0:00:09]} Qe6 {[%emt 0:00:51]} 29. Nc3 {[%emt 0:00:19]} Qxd6 {[%emt 0:00:07]} 30. Bg5 {[%emt 0:00:09]} Qc6 31. Rd3 {[%emt 0:00:19]} h6 {[%emt 0:00:36]} 32. Bf4 {[%emt 0:00:15]} Bxc3 {[%emt 0:00:03]} 0-1

[Event "1st Gujarat GM Open 2018"]
[Site "Ahmedabad"]
[Date "2018.10.07"]
[Round "3"]
[White "Rajarshi Dutta"]
[Black "Sahil, Tickoo"]
[Result "0-1"]
[ECO "B22"]
[WhiteElo "2026"]
[BlackElo "2217"]
[Annotator "NA"]
[PlyCount "108"]
[EventDate "2018.10.05"]
[EventType "swiss"]
[EventCountry "IND"]
[SourceTitle "playchess.com"]
[Source "ChessBase"]
[SourceQuality "1"]
[TimeControl "5400+30"]

1. e4 {[%emt 0:00:00]} c5 {[%emt 0:00:00]} 2. c3 {[%emt 0:00:11]} d5 {[%emt 0:00:00]} 3. exd5 {[%emt 0:00:13]} Nf6 {[%emt 0:00:00]} 4. d4 {[%emt 0:01:58]} Nxd5 {[%emt 0:00:17]} 5. Nf3 {[%emt 0:03:04]} e6 {[%emt 0:00:06]} 6. Ne5 {[%emt 0:04:17]} Nc6 {[%emt 0:04:07]} 7. Bb5 {[%emt 0:13:29]} Bd7 {[%emt 0:00:44]} 8. Nxd7 {[%emt 0:05:51]} Qxd7 {[%emt 0:00:15]} 9. O-O {[%emt 0:01:06]} a6 {[%emt 0:03:00]} 10. Bc4 {[%emt 0:18:54]} cxd4 {[%emt 0:01:34]} 11. cxd4 {[%emt 0:00:07]} Nb6 {[%emt 0:01:50]} 12. Qb3 {[%emt 0:10:32]} Nxc4 {[%emt 0:02:13]} 13. Qxc4 {[%emt 0:00:01]} Qxd4 {[%emt 0:00:20]} 14. Qb3 {[%emt 0:00:35]} Qb4 {[%emt 0:11:46]} 15. Qg3 {[%emt 0:10:10]} Nd4 {[%emt 0:05:26]} 16. Qd3 {[%emt 0:00:40]} Rd8 {[%emt 0:01:11]} 17. Nc3 {[%emt 0:04:43]} Nb3 {[%emt 0:04:42]} 18. Nd5 {[%emt 0:07:49]} Rxd5 {[%emt 0:02:19]} 19. Qxb3 {[%emt 0:00:25]} Qxb3 {[%emt 0:00:05]} 20. axb3 {[%emt 0:00:02]} Bd6 {[%emt 0:02:35]} 21. Be3 {[%emt 0:01:07]} Ke7 {[%emt 0:01:08]} 22. Rac1 {[%emt 0:02:24]} Rd8 {[%emt 0:01:03]} 23. Rc4 {[%emt 0:02:07]} Rb5 {[%emt 0:01:07]} 24. Bd4 {[%emt 0:01:44]} f6 {[%emt 0:00:39]} 25. Bc3 {[%emt 0:02:22]} Rxb3 {[%emt 0:00:54]} 26. Re1 {[%emt 0:00:52]} Rb5 {[%emt 0:01:20]} 27. Rce4 {[%emt 0:01:57]} e5 {[%emt 0:00:16]} 28. f4 {[%emt 0:00:31]} Ke6 {[%emt 0:00:10]} 29. g4 {[%emt 0:01:17]} g6 {[%emt 0:00:34]} 30. R4e2 {[%emt 0:01:38]} Bc5+ {[%emt 0:01:54]} 31. Kg2 {[%emt 0:01:08]} Bd4 {[%emt 0:00:06]} 32. g5 {[%emt 0:01:39]} Bxc3 {[%emt 0:02:53]} 33. bxc3 {[%emt 0:00:05]} Rc8 {[%emt 0:04:01]} 34. gxf6 {[%emt 0:00:09]} Kxf6 {[%emt 0:00:02]} 35. fxe5+ {[%emt 0:00:29]} Ke6 {[%emt 0:00:02]} 36. Re3 {[%emt 0:02:37]} Rcc5 {[%emt 0:00:15]} 37. Rh3 {[%emt 0:00:32]} Rc7 {[%emt 0:00:24]} 38. Rhe3 {[%emt 0:01:37]} Rbc5 {[%emt 0:00:00]} 39. Kf3 {[%emt 0:00:34]} Rxc3 {[%emt 0:00:15]} 40. Kf4 {[%emt 0:00:18]} h6 {[%emt 0:03:21]} 41. Rxc3 {[%emt 0:00:30]} Rxc3 {[%emt 0:00:01]} 42. Ke4 {[%emt 0:00:29]} Rc5 {[%emt 0:00:12]} 43. Kf4 {[%emt 0:00:37]} Rc4+ {[%emt 0:01:37]} 44. Kf3 {[%emt 0:00:04]} b5 {[%emt 0:00:31]} 45. Ra1 {[%emt 0:00:37]} Ra4 {[%emt 0:00:07]} 46. Re1 {[%emt 0:00:17]} a5 {[%emt 0:00:12]} 47. Rg1 {[%emt 0:00:32]} g5 {[%emt 0:00:06]} 48. Re1 {[%emt 0:00:07]} Rf4+ {[%emt 0:00:14]} 49. Kg3 {[%emt 0:00:07]} a4 {[%emt 0:00:12]} 50. Rc1 {[%emt 0:00:32]} b4 {[%emt 0:00:20]} 51. Rc5 {[%emt 0:00:23]} a3 {[%emt 0:00:08]} 52. Ra5 {[%emt 0:00:11]} Re4 {[%emt 0:00:07]} 53. Rb5 {[%emt 0:00:39]} a2 {[%emt 0:00:14]} 54. Ra5 {[%emt 0:00:01]} b3 {[%emt 0:00:05]} 0-1

[Event "1st Gujarat GM Open 2018"]
[Site "Ahmedabad"]
[Date "2018.10.07"]
[Round "3"]
[White "Mulay, Pratik"]
[Black "Sai Agni Jeevitesh, J."]
[Result "0-1"]
[ECO "A22"]
[WhiteElo "1983"]
[BlackElo "2362"]
[Annotator "NA"]
[PlyCount "73"]
[EventDate "2018.10.05"]
[EventType "swiss"]
[EventCountry "IND"]
[SourceTitle "playchess.com"]
[Source "ChessBase"]
[SourceQuality "1"]
[TimeControl "5400+30"]

1. c4 {[%emt 0:00:00]} e5 {[%emt 0:00:00]} 2. Nc3 {[%emt 0:00:00]} Nf6 {[%emt 0:00:00]} 3. g3 {[%emt 0:00:13]} d5 {[%emt 0:00:00]} 4. cxd5 {[%emt 0:00:33]} Nxd5 {[%emt 0:00:00]} 5. Bg2 {[%emt 0:00:11]} Nb6 {[%emt 0:00:00]} 6. a4 {[%emt 0:01:50]} a5 {[%emt 0:01:22]} 7. Nf3 {[%emt 0:02:00]} Nc6 {[%emt 0:01:18]} 8. O-O {[%emt 0:00:34]} Be7 {[%emt 0:01:49]} 9. d3 {[%emt 0:01:36]} O-O {[%emt 0:01:33]} 10. Be3 {[%emt 0:01:20]} Be6 {[%emt 0:07:28]} 11. Rc1 {[%emt 0:02:59]} f5 {[%emt 0:08:47]} 12. Nb5 {[%emt 0:02:32]} Nd5 {[%emt 0:03:17]} 13. Bc5 {[%emt 0:02:38]} Ndb4 {[%emt 0:00:53]} 14. Bxb4 {[%emt 0:30:03]} axb4 {[%emt 0:06:33]} 15. Nxe5 {[%emt 0:06:13]} Nxe5 {[%emt 0:00:42]} 16. Nxc7 {[%emt 0:00:09]} Qd7 {[%emt 0:01:16]} 17. d4 {[%emt 0:01:58]} Ng4 {[%emt 0:03:28]} 18. Bxb7 {[%emt 0:11:39]} Ra7 {[%emt 0:03:56]} 19. Nxe6 {[%emt 0:01:59]} Qxe6 {[%emt 0:00:09]} 20. Bf3 {[%emt 0:01:09]} Nf6 {[%emt 0:22:02]} 21. Rc6 {[%emt 0:06:24]} Qd7 {[%emt 0:07:00]} 22. Qd3 {[%emt 0:06:20]} Kh8 {[%emt 0:01:27]} 23. b3 {[%emt 0:01:25]} Nd5 {[%emt 0:01:46]} 24. Bxd5 {[%emt 0:03:03]} Qxd5 {[%emt 0:00:02]} 25. Rfc1 {[%emt 0:00:01]} f4 {[%emt 0:03:19]} 26. Rc8 {[%emt 0:02:06]} Ra8 {[%emt 0:01:59]} 27. Rxa8 {[%emt 0:07:42]} Qxa8 {[%emt 0:02:32]} 28. f3 {[%emt 0:03:17]} Qb8 {[%emt 0:03:25]} 29. Kg2 {[%emt 0:00:50]} Bd6 {[%emt 0:00:19]} 30. gxf4 {[%emt 0:02:38]} Bxf4 {[%emt 0:00:02]} 31. e3 {[%emt 0:00:01]} Bd6 {[%emt 0:04:25]} 32. f4 {[%emt 0:01:26]} g5 {[%emt 0:03:45]} 33. f5 {[%emt 0:01:06]} Bxh2 {[%emt 0:01:20]} 34. e4 {[%emt 0:00:19]} Bf4 {[%emt 0:00:17]} 35. Rc6 {[%emt 0:00:40]} Qe8 {[%emt 0:00:57]} 36. d5 {[%emt 0:00:35]} Qh5 {[%emt 0:00:11]} 37. Qf3 0-1